[Event "1st Archibald 2019"]
[Site "Sochi"]
[Date "2019.05.14"]
[Round "4.17"]
[White "Bimiev, Ahmad"]
[Black "Zakaryan, David"]
[Result "1/2-1/2"]
[ECO "B20"]
[WhiteElo "2196"]
[BlackElo "2350"]
[Annotator "ChessBase"]
[PlyCount "84"]
[EventDate "2019.05.12"]
[EventType "swiss"]
[EventCountry "RUS"]
[SourceTitle "playchess.com"]
[Source "ChessBase"]
[SourceQuality "1"]
[TimeControl "5400+30"]

1. e4 {[%emt 0:00:00]} c5 {[%emt 0:08:54]} 2. d3 {[%emt 0:00:09]} Nc6 {[%emt 0:00:18]} 3. g3 {[%emt 0:00:08]} d5 {[%emt 0:00:14]} 4. exd5 {[%emt 0:00:13]} Qxd5 {[%emt 0:00:00]} 5. Nf3 {[%emt 0:00:12]} Nd4 {[%emt 0:01:16]} 6. Bg2 {[%emt 0:00:08]} Bh3 {[%emt 0:03:15]} 7. Bxh3 {[%emt 0:00:08]} Nxf3+ {[%emt 0:00:05]} 8. Kf1 {[%emt 0:00:03]} Nd2+ {[%emt 0:00:21]} 9. Kg1 {[%emt 0:00:07]} Nf3+ {[%emt 0:00:05]} 10. Kf1 {[%emt 0:00:03]} Nd2+ {[%emt 0:00:22]} 11. Kg1 {[%emt 0:00:03]} Nxb1 {[%emt 0:00:11]} 12. Bg2 {[%emt 0:00:31]} Qd7 {[%emt 0:00:22]} 13. Rxb1 {[%emt 0:00:00]} Rc8 {[%emt 0:00:54]} 14. Qf3 {[%emt 0:04:17]} b6 {[%emt 0:00:06]} 15. b3 {[%emt 0:02:11]} e6 {[%emt 0:00:15]} 16. Bb2 {[%emt 0:00:13]} Ne7 {[%emt 0:00:02]} 17. Qb7 {[%emt 0:05:49]} Nf5 {[%emt 0:01:53]} 18. Qxd7+ {[%emt 0:02:25]} Kxd7 {[%emt 0:00:03]} 19. Rd1 {[%emt 0:01:54]} Bd6 {[%emt 0:02:53]} 20. Be4 {[%emt 0:00:25]} Nd4 {[%emt 0:00:38]} 21. c3 {[%emt 0:00:27]} Nc6 {[%emt 0:00:01]} 22. Kg2 {[%emt 0:01:06]} Rhd8 {[%emt 0:02:39]} 23. h4 {[%emt 0:04:35]} h5 {[%emt 0:00:06]} 24. Rhe1 {[%emt 0:02:54]} Be7 {[%emt 0:01:35]} 25. d4 {[%emt 0:02:06]} cxd4 {[%emt 0:00:11]} 26. cxd4 {[%emt 0:00:18]} Bf6 {[%emt 0:02:04]} 27. Bf3 {[%emt 0:17:26]} g6 {[%emt 0:00:25]} 28. Bxc6+ {[%emt 0:26:16]} Rxc6 {[%emt 0:00:02]} 29. d5 {[%emt 0:00:08]} exd5 {[%emt 0:00:02]} 30. Bxf6 {[%emt 0:00:06]} Rxf6 {[%emt 0:00:01]} 31. Rxd5+ {[%emt 0:00:06]} Rd6 {[%emt 0:00:01]} 32. Rxd6+ {[%emt 0:00:19]} Kxd6 {[%emt 0:00:00]} 33. Rd1+ {[%emt 0:00:06]} Ke7 {[%emt 0:00:03]} 34. Rxd8 {[%emt 0:00:12]} Kxd8 {[%emt 0:00:00]} 35. Kf3 {[%emt 0:00:07]} Ke7 {[%emt 0:00:03]} 36. Ke3 {[%emt 0:00:33]} f6 {[%emt 0:02:50]} 37. f3 {[%emt 0:10:14]} g5 {[%emt 0:09:53]} 38. Ke4 {[%emt 0:02:43]} Ke6 {[%emt 0:00:19]} 39. f4 {[%emt 0:00:05]} gxh4 {[%emt 0:01:03]} 40. gxh4 {[%emt 0:00:02]} f5+ {[%emt 0:03:14]} 41. Kd4 {[%emt 0:00:06]} Kd6 {[%emt 0:00:03]} 42. a4 {[%emt 0:05:25]} a6 {[%emt 0:02:00]} 1/2-1/2

[Event "1st Archibald 2019"]
[Site "Sochi"]
[Date "2019.05.14"]
[Round "4.19"]
[White "Ufimtsev, Egor"]
[Black "Alexeev, Alexey"]
[Result "1/2-1/2"]
[ECO "A28"]
[WhiteElo "2101"]
[BlackElo "2292"]
[Annotator "ChessBase"]
[PlyCount "89"]
[EventDate "2019.05.12"]
[EventType "swiss"]
[EventCountry "RUS"]
[SourceTitle "playchess.com"]
[Source "ChessBase"]
[SourceQuality "1"]
[TimeControl "5400+30"]

1. c4 {[%emt 0:00:00]} e5 {[%emt 0:00:44]} 2. Nc3 {[%emt 0:00:47]} Nf6 {[%emt 0:00:25]} 3. Nf3 {[%emt 0:01:26]} Nc6 {[%emt 0:00:06]} 4. a3 {[%emt 0:00:03]} e4 {[%emt 0:03:30]} 5. Ng5 {[%emt 0:00:35]} Qe7 {[%emt 0:00:05]} 6. f3 {[%emt 0:05:17]} exf3 {[%emt 0:03:17]} 7. Nxf3 {[%emt 0:00:11]} Ne5 {[%emt 0:00:24]} 8. e4 {[%emt 0:09:12]} d6 {[%emt 0:05:41]} 9. Be2 {[%emt 0:07:18]} g6 {[%emt 0:05:08]} 10. d4 {[%emt 0:01:31]} Nxf3+ {[%emt 0:02:15]} 11. Bxf3 {[%emt 0:01:26]} Bg7 {[%emt 0:00:23]} 12. O-O {[%emt 0:13:05]} O-O {[%emt 0:03:42]} 13. Bg5 {[%emt 0:03:28]} Be6 {[%emt 0:00:26]} 14. d5 {[%emt 0:07:08]} Bc8 {[%emt 0:05:27]} 15. Qd2 {[%emt 0:00:08]} Qe5 {[%emt 0:01:22]} 16. Bf4 {[%emt 0:11:52]} Qe8 {[%emt 0:01:05]} 17. Nb5 {[%emt 0:03:53]} Qe7 {[%emt 0:06:15]} 18. c5 {[%emt 0:00:43]} Ne8 {[%emt 0:04:02]} 19. cxd6 {[%emt 0:00:48]} cxd6 {[%emt 0:02:07]} 20. Qb4 {[%emt 0:08:53]} a5 {[%emt 0:06:26]} 21. Qd2 {[%emt 0:04:51]} Bd7 {[%emt 0:00:41]} 22. a4 {[%emt 0:00:07]} Be5 {[%emt 0:10:11]} 23. Rac1 {[%emt 0:03:11]} b6 {[%emt 0:13:56]} 24. b3 {[%emt 0:01:05]} Nf6 {[%emt 0:05:23]} 25. Bxe5 {[%emt 0:04:14]} Qxe5 {[%emt 0:00:15]} 26. Qd4 {[%emt 0:00:50]} Bxb5 {[%emt 0:06:56]} 27. Qxe5 {[%emt 0:00:05]} dxe5 {[%emt 0:00:06]} 28. axb5 {[%emt 0:00:01]} a4 {[%emt 0:00:06]} 29. bxa4 {[%emt 0:00:28]} Rxa4 {[%emt 0:00:04]} 30. Rc6 {[%emt 0:02:17]} Nxe4 {[%emt 0:00:23]} 31. Bxe4 {[%emt 0:00:03]} Rxe4 {[%emt 0:00:05]} 32. Rd1 {[%emt 0:00:09]} Rd8 {[%emt 0:02:29]} 33. d6 {[%emt 0:01:49]} Rd4 {[%emt 0:00:04]} 34. Rxd4 {[%emt 0:00:05]} exd4 {[%emt 0:00:04]} 35. Kf2 {[%emt 0:04:08]} Kg7 {[%emt 0:00:22]} 36. Rxb6 {[%emt 0:00:49]} Kf6 {[%emt 0:03:02]} 37. Rc6 {[%emt 0:04:15]} Ke6 {[%emt 0:04:04]} 38. b6 {[%emt 0:00:38]} Rb8 {[%emt 0:03:34]} 39. Ke2 {[%emt 0:00:52]} Kd7 {[%emt 0:02:43]} 40. Rc7+ {[%emt 0:00:02]} Kxd6 {[%emt 0:00:05]} 41. Rxf7 {[%emt 0:00:04]} Rxb6 {[%emt 0:00:12]} 42. Kd3 {[%emt 0:00:43]} Ke5 {[%emt 0:01:00]} 43. Re7+ {[%emt 0:00:10]} Kd5 {[%emt 0:01:18]} 44. Rd7+ {[%emt 0:00:09]} Ke5 {[%emt 0:00:10]} 45. Re7+ {[%emt 0:00:04]} 1/2-1/2

[Event "1st Archibald 2019"]
[Site "Sochi"]
[Date "2019.05.14"]
[Round "4.21"]
[White "Yakimenko, Alexander A."]
[Black "Potapova, Margarita"]
[Result "0-1"]
[ECO "B51"]
[WhiteElo "2059"]
[BlackElo "2253"]
[Annotator "ChessBase"]
[PlyCount "86"]
[EventDate "2019.05.12"]
[EventType "swiss"]
[EventCountry "RUS"]
[SourceTitle "playchess.com"]
[Source "ChessBase"]
[SourceQuality "1"]
[TimeControl "5400+30"]

1. e4 {[%emt 0:00:00]} c5 {[%emt 0:00:14]} 2. Nf3 {[%emt 0:00:06]} d6 {[%emt 0:00:17]} 3. Bb5+ {[%emt 0:00:08]} Nd7 {[%emt 0:00:11]} 4. O-O {[%emt 0:05:47]} a6 {[%emt 0:00:14]} 5. Bxd7+ {[%emt 0:00:20]} Bxd7 {[%emt 0:00:06]} 6. c4 {[%emt 0:00:30]} Nf6 {[%emt 0:01:17]} 7. Nc3 {[%emt 0:00:17]} g6 {[%emt 0:02:28]} 8. d3 {[%emt 0:05:32]} Bg7 {[%emt 0:00:17]} 9. Bg5 {[%emt 0:03:00]} O-O {[%emt 0:01:27]} 10. Qd2 {[%emt 0:01:04]} Re8 {[%emt 0:04:31]} 11. Bh6 {[%emt 0:01:13]} Bh8 {[%emt 0:00:18]} 12. h3 {[%emt 0:00:16]} b5 {[%emt 0:00:22]} 13. Rfe1 {[%emt 0:10:09]} Rb8 {[%emt 0:15:59]} 14. Rad1 {[%emt 0:15:25]} Qa5 {[%emt 0:02:29]} 15. e5 {[%emt 0:12:33]} b4 {[%emt 0:02:48]} 16. Ne2 {[%emt 0:00:36]} Nh5 {[%emt 0:04:24]} 17. g4 {[%emt 0:04:35]} Ng7 {[%emt 0:01:52]} 18. Nf4 {[%emt 0:01:16]} Bc6 {[%emt 0:03:49]} 19. Ng5 {[%emt 0:17:46]} dxe5 {[%emt 0:00:51]} 20. Rxe5 {[%emt 0:01:06]} f6 {[%emt 0:03:59]} 21. Re6 {[%emt 0:01:27]} Bd7 {[%emt 0:06:03]} 22. Rde1 {[%emt 0:01:23]} fxg5 {[%emt 0:02:48]} 23. Rxe7 {[%emt 0:00:14]} Ne6 {[%emt 0:14:30]} 24. Rxd7 {[%emt 0:03:50]} Nxf4 {[%emt 0:01:08]} 25. Ree7 {[%emt 0:08:31]} Rxe7 {[%emt 0:01:53]} 26. Rxe7 {[%emt 0:00:00]} Bf6 {[%emt 0:02:03]} 27. Qe3 {[%emt 0:00:30]} Qd8 {[%emt 0:00:20]} 28. Re4 {[%emt 0:03:54]} Bd4 {[%emt 0:01:18]} 29. Qf3 {[%emt 0:00:18]} Qf6 {[%emt 0:01:37]} 30. h4 {[%emt 0:00:16]} Nxd3 {[%emt 0:02:20]} 31. Qxf6 {[%emt 0:00:24]} Bxf6 {[%emt 0:00:02]} 32. hxg5 {[%emt 0:00:20]} Bd4 {[%emt 0:00:07]} 33. Re6 {[%emt 0:00:54]} a5 {[%emt 0:00:26]} 34. b3 {[%emt 0:01:03]} Ra8 {[%emt 0:00:18]} 35. Kg2 {[%emt 0:00:09]} Nxf2 {[%emt 0:00:05]} 36. Kf3 {[%emt 0:00:10]} Nd3 {[%emt 0:00:22]} 37. Ke4 {[%emt 0:01:03]} Nc1 {[%emt 0:00:19]} 38. Kd5 {[%emt 0:00:13]} Nxa2 {[%emt 0:00:10]} 39. Re7 {[%emt 0:01:28]} a4 {[%emt 0:01:18]} 40. bxa4 {[%emt 0:00:09]} b3 {[%emt 0:00:11]} 41. Kc6 {[%emt 0:00:35]} b2 {[%emt 0:01:13]} 42. Re1 {[%emt 0:01:03]} Nc1 {[%emt 0:00:10]} 43. Kb7 {[%emt 0:00:13]} Rf8 {[%emt 0:00:05]} 0-1

[Event "1st Archibald 2019"]
[Site "Sochi"]
[Date "2019.05.14"]
[Round "4.22"]
[White "Dashko, Andrey"]
[Black "Toprover, Viktor G."]
[Result "1-0"]
[ECO "C00"]
[WhiteElo "2211"]
[BlackElo "2275"]
[Annotator "RC"]
[PlyCount "103"]
[EventDate "2019.05.12"]
[EventType "swiss"]
[EventCountry "RUS"]
[SourceTitle "playchess.com"]
[Source "ChessBase"]
[SourceQuality "1"]
[TimeControl "5400+30"]

1. e4 {[%emt 0:00:00]} e6 {[%emt 0:00:02]} 2. d3 {[%emt 0:00:35]} d5 {[%emt 0:00:06]} 3. Nd2 {[%emt 0:00:04]} Nf6 {[%emt 0:00:14]} 4. Ngf3 {[%emt 0:00:09]} Be7 {[%emt 0:00:37]} 5. g3 {[%emt 0:00:24]} c5 {[%emt 0:04:29]} 6. Bg2 {[%emt 0:00:20]} Nc6 {[%emt 0:00:13]} 7. O-O {[%emt 0:00:26]} O-O {[%emt 0:03:31]} 8. Qe2 {[%emt 0:01:32]} Re8 {[%emt 0:02:10]} 9. Re1 {[%emt 0:01:35]} Nb4 {[%emt 0:02:39]} 10. Nf1 {[%emt 0:02:39]} b6 {[%emt 0:05:39]} 11. e5 {[%emt 0:02:20]} Nd7 {[%emt 0:00:19]} 12. h4 {[%emt 0:00:06]} Ba6 {[%emt 0:03:15]} 13. a3 {[%emt 0:05:03]} Nc6 {[%emt 0:00:46]} 14. N1h2 {[%emt 0:00:09]} Rc8 {[%emt 0:01:53]} 15. Ng4 {[%emt 0:02:58]} c4 {[%emt 0:01:38]} 16. d4 {[%emt 0:01:19]} Ndb8 {[%emt 0:02:39]} 17. c3 {[%emt 0:01:01]} Na5 {[%emt 0:00:41]} 18. Bf4 {[%emt 0:00:09]} Nb3 {[%emt 0:02:29]} 19. Rab1 {[%emt 0:04:03]} Bb5 {[%emt 0:02:37]} 20. Qc2 {[%emt 0:00:44]} Nd7 {[%emt 0:00:41]} 21. h5 {[%emt 0:02:24]} a5 {[%emt 0:02:12]} 22. Kh2 {[%emt 0:01:46]} Bc6 {[%emt 0:00:59]} 23. Bh3 {[%emt 0:01:54]} b5 {[%emt 0:01:36]} 24. Rg1 {[%emt 0:02:33]} Nf8 {[%emt 0:01:31]} 25. Be3 {[%emt 0:05:53]} b4 {[%emt 0:00:32]} 26. axb4 {[%emt 0:00:08]} axb4 {[%emt 0:00:07]} 27. Nh4 {[%emt 0:00:17]} Ra8 {[%emt 0:03:58]} 28. f4 {[%emt 0:01:21]} Ra2 {[%emt 0:06:02]} 29. f5 {[%emt 0:04:23]} Bg5 {[%emt 0:08:16]} 30. Bxg5 {[%emt 0:11:11]} Qxg5 {[%emt 0:00:07]} 31. Rg2 {[%emt 0:00:43]} bxc3 {[%emt 0:03:28]} 32. Qxc3 {[%emt 0:02:16]} Qxh5 {[%emt 0:06:55]} 33. Rf1 {[%emt 0:03:14]} Bd7 {[%emt 0:04:04]} 34. Rgf2 {[%emt 0:13:10]} Ra1 {[%emt 0:02:17]} 35. Rxa1 {[%emt 0:03:39]} Nxa1 {[%emt 0:00:06]} 36. Ne3 {[%emt 0:11:31]} Ra8 {[%emt 0:04:03]} 37. Bg4 {[%emt 0:01:47]} Qh6 {[%emt 0:01:05]} 38. Kg2 {[%emt 0:00:49]} Nb3 {[%emt 0:00:29]} 39. Bd1 {[%emt 0:00:27]} Rb8 {[%emt 0:07:38]} 40. f6 {[%emt 0:07:00]} g5 {[%emt 0:03:22]} 41. Nf3 {[%emt 0:02:17]} Ng6 {[%emt 0:02:40]} 42. Rf1 {[%emt 0:01:13]} Qf8 {[%emt 0:01:58]} 43. Rh1 {[%emt 0:00:12]} h6 {[%emt 0:01:17]} 44. Ng4 {[%emt 0:00:06]} Qb4 {[%emt 0:03:30]} 45. Nxh6+ {[%emt 0:00:47]} Kf8 {[%emt 0:00:27]} 46. Nxg5 {[%emt 0:00:09]} Qxc3 {[%emt 0:00:22]} 47. bxc3 {[%emt 0:00:01]} Nd2 {[%emt 0:01:15]} 48. Bh5 {[%emt 0:00:29]} Rb1 {[%emt 0:00:37]} 49. Ngxf7 {[%emt 0:00:39]} Rxh1 {[%emt 0:00:47]} 50. Kxh1 {[%emt 0:00:01]} Nxe5 {[%emt 0:01:54]} 51. Nxe5 {[%emt 0:00:13]} Ba4 {[%emt 0:01:08]} 52. Ng6+ {[%emt 0:00:08]} 1-0

[Event "1st Archibald 2019"]
[Site "Sochi"]
[Date "2019.05.15"]
[Round "5.6"]
[White "Gritsayeva, Oksana"]
[Black "Bogdanovich, Stanislav"]
[Result "0-1"]
[ECO "B30"]
[WhiteElo "2383"]
[BlackElo "2581"]
[Annotator "RC"]
[PlyCount "104"]
[EventDate "2019.05.12"]
[EventType "swiss"]
[EventCountry "RUS"]
[SourceTitle "playchess.com"]
[Source "ChessBase"]
[SourceQuality "1"]
[TimeControl "5400+30"]

1. e4 {[%emt 0:00:00]} c5 {[%emt 0:04:55]} 2. Nf3 {[%emt 0:00:00]} Nc6 {[%emt 0:00:07]} 3. Bb5 {[%emt 0:00:00]} e6 {[%emt 0:00:17]} 4. O-O {[%emt 0:00:10]} Nge7 {[%emt 0:00:03]} 5. Re1 {[%emt 0:00:00]} a6 {[%emt 0:00:09]} 6. Bf1 {[%emt 0:00:22]} d5 {[%emt 0:00:19]} 7. exd5 {[%emt 0:00:12]} Nxd5 {[%emt 0:00:07]} 8. d4 {[%emt 0:00:09]} Nf6 {[%emt 0:00:15]} 9. Be3 {[%emt 0:00:32]} Be7 {[%emt 0:00:27]} 10. c4 {[%emt 0:00:39]} O-O {[%emt 0:00:58]} 11. Nc3 {[%emt 0:00:21]} cxd4 {[%emt 0:00:30]} 12. Nxd4 {[%emt 0:00:07]} Ne5 {[%emt 0:00:52]} 13. Nb3 {[%emt 0:15:30]} Qc7 {[%emt 0:04:40]} 14. Bf4 {[%emt 0:02:55]} Bd6 {[%emt 0:00:39]} 15. c5 {[%emt 0:02:19]} Nf3+ {[%emt 0:00:16]} 16. Qxf3 {[%emt 0:00:00]} Bxf4 {[%emt 0:00:05]} 17. g3 {[%emt 0:01:24]} Bh6 {[%emt 0:01:08]} 18. Bg2 {[%emt 0:02:03]} Rb8 {[%emt 0:01:03]} 19. Rad1 {[%emt 0:02:36]} Bd7 {[%emt 0:02:28]} 20. Qd3 {[%emt 0:02:16]} Rfc8 {[%emt 0:10:44]} 21. Qd6 {[%emt 0:05:50]} Be8 {[%emt 0:06:02]} 22. Qxc7 {[%emt 0:11:04]} Rxc7 {[%emt 0:00:18]} 23. Rd6 {[%emt 0:01:48]} Kf8 {[%emt 0:09:14]} 24. Red1 {[%emt 0:03:10]} Ke7 {[%emt 0:01:04]} 25. R1d4 {[%emt 0:06:18]} Nd7 {[%emt 0:04:17]} 26. Rb4 {[%emt 0:09:21]} g6 {[%emt 0:07:34]} 27. Rd3 {[%emt 0:06:29]} Nxc5 {[%emt 0:06:54]} 28. Nxc5 {[%emt 0:00:00]} Rxc5 {[%emt 0:00:05]} 29. Rxb7+ {[%emt 0:00:34]} Rxb7 {[%emt 0:00:00]} 30. Bxb7 {[%emt 0:00:05]} a5 {[%emt 0:00:17]} 31. Bf3 {[%emt 0:02:57]} Bg7 {[%emt 0:03:58]} 32. h4 {[%emt 0:01:23]} f5 {[%emt 0:00:31]} 33. Bd1 {[%emt 0:01:43]} e5 {[%emt 0:03:37]} 34. Nd5+ {[%emt 0:03:18]} Kf8 {[%emt 0:03:56]} 35. Nc3 {[%emt 0:05:47]} e4 {[%emt 0:02:44]} 36. Rd8 {[%emt 0:00:02]} Ke7 {[%emt 0:00:03]} 37. Rd5 {[%emt 0:04:00]} Rxd5 {[%emt 0:01:11]} 38. Nxd5+ {[%emt 0:00:00]} Kd6 {[%emt 0:04:52]} 39. Ne3 {[%emt 0:03:53]} Kc5 {[%emt 0:00:01]} 40. b3 {[%emt 0:00:00]} Bb5 {[%emt 0:01:40]} 41. Nc2 {[%emt 0:00:00]} Bc3 {[%emt 0:00:12]} 42. a3 {[%emt 0:00:02]} Bd3 {[%emt 0:00:04]} 43. Kg2 {[%emt 0:02:00]} Bd2 {[%emt 0:03:16]} 44. h5 {[%emt 0:01:36]} g5 {[%emt 0:06:19]} 45. Ne3 {[%emt 0:01:37]} f4 {[%emt 0:01:31]} 46. gxf4 {[%emt 0:01:13]} gxf4 {[%emt 0:00:50]} 47. Nc4 {[%emt 0:01:56]} Be1 {[%emt 0:00:47]} 48. Nxa5 {[%emt 0:00:05]} Bxa5 {[%emt 0:00:02]} 49. b4+ {[%emt 0:00:42]} Bxb4 {[%emt 0:01:24]} 50. axb4+ {[%emt 0:01:37]} Kxb4 {[%emt 0:03:37]} 51. h6 {[%emt 0:00:04]} Kc3 {[%emt 0:00:04]} 52. Bg4 {[%emt 0:00:03]} Kd2 {[%emt 0:00:05]} 0-1

[Event "1st Archibald 2019"]
[Site "Sochi"]
[Date "2019.05.15"]
[Round "5.20"]
[White "Khudyakov, Stanislav"]
[Black "Ufimtsev, Egor"]
[Result "0-1"]
[ECO "B12"]
[WhiteElo "2086"]
[BlackElo "2101"]
[Annotator "NA"]
[PlyCount "104"]
[EventDate "2019.05.12"]
[EventType "swiss"]
[EventCountry "RUS"]
[SourceTitle "playchess.com"]
[Source "ChessBase"]
[SourceQuality "1"]
[TimeControl "5400+30"]

1. e4 {[%emt 0:00:00]} c6 {[%emt 0:00:04]} 2. d4 {[%emt 0:00:04]} d5 {[%emt 0:00:02]} 3. e5 {[%emt 0:00:05]} Bf5 {[%emt 0:00:05]} 4. Nd2 {[%emt 0:00:05]} e6 {[%emt 0:00:23]} 5. Nb3 {[%emt 0:00:05]} c5 {[%emt 0:01:26]} (5... Nd7 6. Nf3 Ne7 7. Be2 h6 8. a4 Qc7 9. O-O g5 10. a5 O-O-O 11. Bd2 a6 12. c4 dxc4 13. Bxc4 Nd5 14. Qe2 {0-1 (38) Movsesian,S (2629)-Shankland,S (2725) chess.com INT 2019}) 6. dxc5 {[%emt 0:00:04] B12: Caro-Kann: Advance Variation} Bxc5 {[%emt 0:00:03]} 7. Nxc5 {[%emt 0:00:06]} Qa5+ {[%emt 0:00:03]} 8. c3 {[%emt 0:00:06]} Qxc5 {[%emt 0:00:02]} 9. Be3 {[%emt 0:00:05]} Qc7 {[%emt 0:00:21]} 10. f4 {[%emt 0:00:05]} Nc6 {[%emt 0:00:12]} 11. Nf3 {[%emt 0:00:03]} Nge7 {[%emt 0:00:08]} 12. Nd4 {[%emt 0:00:08]} Nxd4 $146 {[%emt 0:00:32]} ({Predecessor:} 12... Be4 13. Nb5 {1-0 (31) Csirik,A (2327)-Marosi,L (1932) Miskolc 2011}) 13. Qxd4 {[%emt 0:00:06]} O-O {[%emt 0:00:12]} 14. Be2 {[%emt 0:03:13]} Be4 {[%emt 0:00:13]} 15. O-O {[%emt 0:01:16]} Nf5 {[%emt 0:00:13]} 16. Qc5 {[%emt 0:00:04]} Qd8 {[%emt 0:12:17]} 17. Bf2 {[%emt 0:11:19]} b6 {[%emt 0:02:23]} 18. Qb4 {[%emt 0:03:09]} f6 {[%emt 0:13:49]} 19. Bd4 {[%emt 0:12:37] [#]} fxe5 $1 {[%emt 0:13:31]} 20. Bxe5 {[%emt 0:00:12]} Ne3 $1 {[%emt 0:00:21]} 21. Bxg7 {[%emt 0:03:18] [#]} Rf7 {[%emt 0:05:03]} (21... Rf5 $1 $17 22. Be5 Bxg2) 22. Be5 {[%emt 0:00:21]} Nc2 {[%emt 0:06:07]} 23. Qa4 {[%emt 0:01:35]} Nxa1 {[%emt 0:00:06]} 24. Rxa1 {[%emt 0:01:50]} Qf8 {[%emt 0:20:35]} 25. Rf1 {[%emt 0:05:47]} Qh6 {[%emt 0:01:38]} 26. Bf3 {[%emt 0:20:04]} Qg6 {[%emt 0:16:49]} 27. Bxe4 {[%emt 0:05:21]} dxe4 {[%emt 0:02:00]} 28. Re1 {[%emt 0:00:04]} Rd8 $11 {[%emt 0:00:56]} 29. Re3 {[%emt 0:15:38]} Rd3 {[%emt 0:00:03]} 30. Qe8+ {[%emt 0:00:05]} Rf8 {[%emt 0:00:05]} 31. Qxg6+ {[%emt 0:00:02]} hxg6 {[%emt 0:00:03]} 32. Rxe4 {[%emt 0:00:05]} Rd2 {[%emt 0:01:26]} 33. c4 {[%emt 0:00:34]} g5 {[%emt 0:02:06]} 34. g3 {[%emt 0:01:38]} gxf4 {[%emt 0:00:07]} 35. gxf4 {[%emt 0:01:45]} Kf7 {[%emt 0:00:15]} 36. Re3 {[%emt 0:00:04]} Rg8+ {[%emt 0:00:31]} 37. Rg3 {[%emt 0:00:05]} Rc2 {[%emt 0:00:53]} 38. Rxg8 {[%emt 0:02:58]} Kxg8 {[%emt 0:00:03]} 39. h3 {[%emt 0:01:58]} Kf7 {[%emt 0:00:18]} 40. Kf1 {[%emt 0:00:04]} Kg6 {[%emt 0:00:21]} 41. Ke1 {[%emt 0:00:25]} Kf5 {[%emt 0:00:36]} 42. Kd1 {[%emt 0:00:08]} Rg2 {[%emt 0:01:00]} 43. b4 {[%emt 0:00:26]} Ke4 {[%emt 0:00:42]} 44. c5 {[%emt 0:00:22]} bxc5 {[%emt 0:00:36]} 45. bxc5 {[%emt 0:00:04]} Kd5 {[%emt 0:00:11]} 46. Bd6 {[%emt 0:00:10]} Rxa2 {[%emt 0:00:32]} 47. h4 {[%emt 0:00:14]} Rh2 {[%emt 0:00:08]} 48. Be7 {[%emt 0:00:29]} a5 {[%emt 0:00:08]} 49. Kc1 {[%emt 0:00:04]} a4 {[%emt 0:00:04]} 50. Kb1 {[%emt 0:00:02]} Kc4 {[%emt 0:00:30]} 51. c6 {[%emt 0:00:40]} Kb3 {[%emt 0:00:04]} 52. Kc1 {[%emt 0:00:04]} Rc2+ {[%emt 0:00:13]} 0-1

[Event "1st Archibald 2019"]
[Site "Sochi"]
[Date "2019.05.16"]
[Round "6.19"]
[White "Dashko, Andrey"]
[Black "Najdin, Danil"]
[Result "1-0"]
[ECO "C00"]
[WhiteElo "2211"]
[BlackElo "2314"]
[Annotator "NA RC"]
[PlyCount "71"]
[EventDate "2019.05.12"]
[EventType "swiss"]
[EventCountry "RUS"]
[SourceTitle "playchess.com"]
[Source "ChessBase"]
[SourceQuality "1"]
[TimeControl "5400+30"]

1. e4 {[%emt 0:00:00]} e6 {[%emt 0:00:39]} 2. Qe2 {[%emt 0:02:49]} c5 {[%emt 0:01:18]} 3. Nf3 {[%emt 0:01:22]} Nc6 {[%emt 0:00:23]} 4. g3 {[%emt 0:03:26]} Be7 {[%emt 0:02:20]} 5. Bg2 {[%emt 0:02:21]} d5 {[%emt 0:00:27]} 6. d3 {[%emt 0:00:07]} Nf6 {[%emt 0:00:22]} 7. O-O {[%emt 0:02:05]} O-O {[%emt 0:01:30]} 8. e5 {[%emt 0:04:02]} Nd7 {[%emt 0:00:19]} 9. c4 {[%emt 0:00:13]} d4 {[%emt 0:04:33]} 10. h4 {[%emt 0:01:04]} a6 {[%emt 0:02:18] C00: French: Unusual White 2nd moves} (10... b6 11. Ng5 Bb7 12. Bf4 Qc7 13. Nd2 Bxg5 14. hxg5 Ne7 15. Ne4 Ng6 16. Nd6 Bxg2 17. Kxg2 f6 18. gxf6 gxf6 {½-½ (68) Jones,G (2650)-Pantsulaia,L (2612) Almaty 2016}) 11. Bf4 {[%emt 0:00:19]} b5 {[%emt 0:04:29]} 12. Nbd2 {[%emt 0:00:48]} Rb8 {[%emt 0:01:12]} 13. Rfc1 {[%emt 0:10:43]} Nb6 $146 {[%emt 0:03:25]} (13... Bb7 $11 {remains equal.}) ({Predecessor:} 13... b4 14. Ne4 Bb7 15. h5 h6 16. g4 a5 17. g5 hxg5 18. Nexg5 Ncxe5 19. Bxe5 Bxg5 20. Bxb8 Nxb8 21. Nxg5 Qxg5 {½-½ (59) Onokpite,K (2102)-Edunwale,H (2205) Lagos 2015}) 14. Bg5 {[%emt 0:07:54]} f6 {[%emt 0:21:45]} 15. exf6 {[%emt 0:00:23]} gxf6 {[%emt 0:00:17]} 16. Bh6 {[%emt 0:00:05]} Rf7 {[%emt 0:00:32]} 17. Ng5 {[%emt 0:06:28]} (17. cxb5 $16 axb5 18. Nb3) 17... fxg5 {[%emt 0:01:49]} 18. Bxc6 {[%emt 0:00:06]} bxc4 {[%emt 0:02:21]} 19. hxg5 {[%emt 0:08:51]} cxd3 {[%emt 0:05:51]} 20. Qh5 {[%emt 0:00:13]} Bb7 {[%emt 0:27:35]} (20... Rf5 $16) 21. g6 {[%emt 0:05:04]} Rf5 {[%emt 0:00:26] [#]} (21... Rf6 $142 22. gxh7+ Kh8 23. Bxb7 Rxb7) 22. Bg5 $18 {[%emt 0:00:19] Back Rank, Promotion} hxg6 {[%emt 0:02:39]} 23. Qxg6+ {[%emt 0:00:18]} Kh8 {[%emt 0:00:02]} 24. Kg2 {[%emt 0:06:08]} Bxc6+ {[%emt 0:04:32]} 25. f3 {[%emt 0:00:07]} Bxg5 {[%emt 0:00:48]} 26. Rh1+ {[%emt 0:01:15]} Bh4 {[%emt 0:00:02]} 27. Qh6+ {[%emt 0:06:16]} Kg8 {[%emt 0:00:05]} 28. Rxh4 {[%emt 0:00:33]} Kf7 {[%emt 0:02:10]} 29. Qh7+ {[%emt 0:09:49]} Ke8 {[%emt 0:00:47]} 30. Re1 {[%emt 0:00:12]} Qg5 {[%emt 0:07:54]} 31. Rxe6+ {[%emt 0:05:52]} Kd8 {[%emt 0:00:01]} 32. Rxc6 {[%emt 0:00:37]} Nd7 {[%emt 0:02:39]} 33. Ne4 {[%emt 0:01:35]} Rxb2+ {[%emt 0:00:29]} 34. Kh3 {[%emt 0:00:02]} d2 {[%emt 0:00:31]} 35. Nxg5 {[%emt 0:00:23]} Rxg5 {[%emt 0:00:21]} 36. Re4 {[%emt 0:00:17]} 1-0